bitfinex-derivatives/quotes_ETHF0:USTF0_20250102
["timestamp","ask_amount","ask_price","bid_price","bid_amount"]
[1735783447285,0.4643,3387.4,3386.5,3.2078]
[1735783447487,0.4641,3387.1,3387.0,0.29582]
[1735783448279,0.75991,3387.1,3386.9,0.29582]
[1735783448479,0.75991,3387.1,3386.7,0.4598]
[1735783448480,0.4641,3387.1,3387.0,0.29582]
[1735783448788,0.29582,3387.0,3386.7,0.4598]
[1735783448989,0.29582,3387.0,3386.9,0.29583]
[1735783449489,0.4641,3387.1,3387.0,0.29582]
[1735783449683,0.4643,3387.4,3387.3,0.29579]
[1735783449984,0.29579,3387.3,3386.7,1.6608]
[1735783450189,0.29579,3387.3,3387.1,0.2958]
[1735783450789,0.9294,3387.4,3387.3,0.29579]
[1735783451288,0.29579,3387.3,3387.2,0.29579]
[1735783452585,0.2958,3387.2,3386.7,1.6608]
[1735783452790,1.22519,3387.4,3387.3,0.29579]
[1735783455984,0.9294,3387.4,3386.7,0.4598]
[1735783456190,2.38499033,3387.2,3386.7,1.201]
[1735783456384,2.38499033,3387.2,3386.6,0.29585]
[1735783456385,0.29585,3386.7,3386.6,0.29585]
[1735783457287,0.4426,3386.9,3386.5,1.201]
[1735783457482,0.29584,3386.8,3386.7,0.29584]
[1735783458284,0.29585,3386.7,3386.6,0.29585]
[1735783459293,0.4426,3386.9,3386.5,1.201]
[1735783459487,0.4426,3386.9,3386.6,0.29585]
[1735783459488,0.29585,3386.7,3386.6,0.29585]
[1735783460086,2.82759033,3386.9,3386.5,1.201]
[1735783460296,0.29585,3386.6,3386.5,1.49686]
[1735783461194,0.29585,3386.6,3386.5,1.201]
[1735783461395,0.29585,3386.6,3386.5,1.49686]
[1735783461589,0.29585,3386.6,3386.5,1.201]
[1735783462191,0.29585,3386.6,3386.5,1.49686]
[1735783464203,0.72455,3386.7,3386.6,0.29585]
[1735783467096,0.29585,3386.6,3386.5,1.49686]
[1735783468401,0.29585,3386.6,3386.5,1.201]
[1735783468601,0.29585,3386.6,3386.5,1.49686]
[1735783469699,0.29588,3386.3,3386.2,0.29588]
[1735783469893,0.2959,3386.1,3386.0,3.2078]
[1735783470501,0.7345,3386.1,3386.0,3.5037]
[1735783470709,0.4386,3386.1,3386.0,3.5037]
[1735783471706,0.4386,3386.1,3386.0,0.2959]
[1735783473311,0.7345,3386.1,3386.0,0.2959]
[1735783475505,0.29591,3386.0,3385.8,1.49591]
[1735783475706,0.29591,3386.0,3385.9,0.29591]
[1735783476309,0.4386,3386.1,3385.8,1.2]
[1735783476510,0.29591,3386.0,3385.9,0.29591]
[1735783476717,0.29591,3385.9,3385.8,1.49592]
[1735783477102,0.29591,3385.9,3385.8,1.2]
[1735783477403,0.29594,3385.6,3385.5,7.391]
[1735783477610,0.29594,3385.6,3385.4,1.49695]
[1735783477810,1.3538,3385.5,3385.4,1.49695]
[1735783478899,1.3538,3385.5,3385.4,1.201]
[1735783479102,4.5616,3385.5,3384.9,1.201]
[1735783479306,0.29599,3385.1,3384.9,0.296]
[1735783479605,0.29599,3385.1,3384.9,1.497]
[1735783479807,0.4614,3385.0,3384.9,1.497]
[1735783482708,0.4614,3385.0,3384.9,1.201]
[1735783482913,0.4614,3385.0,3384.9,1.497]
[1735783483114,0.29597,3385.3,3385.0,0.29598]
[1735783483314,0.72147,3385.3,3385.0,0.29598]
[1735783483612,0.4255,3385.3,3384.9,1.201]
[1735783483815,0.29599,3385.0,3384.9,1.201]
[1735783484017,0.29599,3385.1,3384.9,1.497]
[1735783484413,0.4255,3385.3,3384.9,1.201]
[1735783484614,0.29599,3385.0,3384.9,1.201]
[1735783484916,0.29599,3385.1,3384.9,1.497]
[1735783485207,0.29598,3385.2,3385.0,0.29599]
[1735783485613,0.4255,3385.3,3384.9,1.201]
[1735783485809,0.29598,3385.1,3385.0,0.29599]
[1735783486509,0.4255,3385.3,3384.9,1.201]
[1735783486709,0.4255,3385.3,3384.9,0.296]
[1735783486710,0.29599,3385.1,3384.9,0.296]
[1735783486915,0.4255,3385.3,3384.7,1.201]
[1735783487210,0.296,3385.0,3384.8,0.29601]
[1735783487418,0.759,3384.9,3384.7,1.49701]
[1735783487621,0.463,3384.9,3384.7,1.201]
[1735783487916,0.463,3384.9,3384.8,0.29601]
[1735783488713,0.463,3384.9,3384.7,1.201]
[1735783488714,0.463,3384.9,3384.5,0.4423]
[1735783488914,1.20032,3384.8,3384.6,1.49702]
[1735783489913,0.29602,3384.7,3384.6,1.201]
[1735783490116,3.28929033,3384.8,3384.2,7.394]
[1735783490314,0.29605,3384.4,3384.3,1.49705]
[1735783490519,0.29605,3384.4,3384.2,1.49706]
[1735783490715,0.4551,3384.3,3384.2,1.49706]
[1735783491614,0.4551,3384.3,3383.9,3.2078]
[1735783491815,0.29609,3384.0,3383.8,1.201]
[1735783492115,3.26429033,3384.2,3383.7,1.201]
[1735783492324,0.2961,3383.8,3383.7,1.201]
[1735783492618,0.2961,3383.9,3383.7,1.201]
[1735783493021,3.26429033,3384.2,3383.7,1.201]
[1735783493418,0.29609,3383.9,3383.7,1.4971]
[1735783494120,3.26429033,3384.2,3383.7,1.201]
[1735783494519,0.4551,3384.3,3383.8,3.2078]
[1735783494717,0.29604,3384.5,3383.8,3.94803]
[1735783494919,0.29604,3384.5,3384.4,0.29604]
[1735783495123,1.67633,3384.6,3383.8,3.2078]
[1735783495324,1.67633,3384.6,3384.5,0.29604]
[1735783495615,1.67633,3384.6,3384.4,0.29604]
[1735783495616,1.3803,3384.6,3384.4,0.29604]
[1735783495821,0.29604,3384.5,3384.4,0.29604]
[1735783496021,1.67633,3384.6,3384.4,0.29604]
[1735783496219,5.59279033,3385.1,3384.7,0.29601]
[1735783496422,5.59279033,3385.1,3384.5,1.201]
[1735783496423,0.296,3384.9,3384.8,0.29601]
[1735783496618,0.9211,3385.0,3384.5,1.201]
[1735783496619,0.9211,3385.0,3384.9,0.296]
[1735783497719,3.2078,3385.5,3384.6,4.37436]
[1735783497922,0.29596,3385.4,3385.3,0.29596]
[1735783498319,3.50375,3385.5,3385.4,0.29596]
[1735783498536,3.50375,3385.5,3385.2,1.201]
[1735783498537,3.2078,3385.5,3385.2,1.201]
[1735783498823,0.29596,3385.4,3385.3,0.29596]
[1735783499729,3.50375,3385.5,3385.4,0.29596]
[1735783500125,3.2078,3385.5,3385.3,0.29596]
[1735783500321,0.29597,3385.3,3385.2,1.49697]
[1735783501022,0.29597,3385.3,3385.2,1.201]
[1735783502030,0.29597,3385.3,3385.2,1.49697]
[1735783503328,0.29597,3385.3,3385.2,1.201]
[1735783503526,2.38499033,3385.4,3384.9,1.201]
[1735783504030,0.29598,3385.1,3385.0,0.29599]
[1735783504530,0.29598,3385.1,3384.9,1.201]
[1735783504830,0.29598,3385.1,3384.9,1.497]
[1735783505034,0.29599,3385.0,3384.9,1.497]
[1735783505421,0.29599,3385.0,3384.9,1.201]
[1735783505626,0.29601,3384.8,3384.7,0.29602]
[1735783505828,0.29602,3384.7,3384.6,3.2078]
[1735783506028,0.29602,3384.7,3384.6,3.50383]
[1735783506029,0.76152,3384.7,3384.6,3.50383]
[1735783506332,0.76152,3384.7,3384.6,3.2078]
[1735783506730,0.4308,3384.9,3384.6,3.2078]
[1735783506934,0.4308,3384.9,3384.8,0.29601]
[1735783507424,0.29601,3384.8,3384.7,0.29601]
[1735783507630,2.38499033,3385.1,3384.6,3.2078]
[1735783507823,0.76147,3385.3,3385.2,0.29597]
[1735783508032,0.76147,3385.3,3384.6,3.94787]
[1735783508033,0.4655,3385.3,3384.6,3.2078]
[1735783508226,0.29598,3385.2,3385.1,0.29598]
[1735783509131,0.29598,3385.2,3384.6,3.2078]
[1735783509132,0.4655,3385.3,3384.6,3.2078]
[1735783509431,0.4655,3385.3,3385.1,0.29598]
[1735783509432,0.29598,3385.2,3385.1,0.29598]
[1735783509729,0.29598,3385.2,3385.0,0.29599]
[1735783510131,0.4655,3385.3,3384.6,3.2078]
[1735783510331,0.4655,3385.3,3385.2,0.29597]
[1735783510332,0.76147,3385.3,3385.2,0.29597]
[1735783510834,0.4655,3385.3,3385.2,0.29597]
[1735783511032,0.4302,3385.6,3385.2,0.29597]
[1735783511033,0.4302,3385.6,3385.3,0.29597]
[1735783511229,0.4323,3385.9,3385.8,0.29592]
[1735783511422,0.4343,3386.2,3385.5,0.4465]
[1735783511423,0.8939,3386.2,3385.5,0.4465]
[1735783511732,8.2056486,3386.2,3386.0,0.2959]
[1735783511929,0.2959,3386.1,3386.0,0.2959]
[1735783513034,1.62209,3386.2,3386.1,0.2959]
[1735783514635,1.3262,3386.2,3385.9,1.201]
[1735783514831,0.2959,3386.1,3386.0,0.2959]
[1735783515141,2.38499033,3386.1,3385.9,1.201]
[1735783515436,0.2959,3386.0,3385.9,1.201]
[1735783515831,2.38499033,3386.1,3385.5,0.4465]
[1735783516026,2.38499033,3386.1,3385.1,2.38499033]
[1735783516027,2.38499033,3385.6,3385.1,1.49598]
[1735783516337,0.29597,3385.2,3385.1,1.2]
[1735783516537,2.38499033,3385.3,3385.1,1.2]
[1735783516731,1.3217,3385.5,3385.2,0.29597]
[1735783517037,0.29597,3385.3,3385.2,0.29597]
[1735783517831,0.29597,3385.3,3385.1,0.29598]
[1735783518032,1.3217,3385.5,3385.4,0.29596]
[1735783518231,5.59279033,3385.9,3385.1,0.4411]
[1735783518232,0.29592,3385.9,3385.1,0.4411]
[1735783518439,0.29591,3386.0,3385.4,3.2078]
[1735783518638,0.29591,3386.0,3385.7,0.29592]
[1735783518837,1.3008,3386.1,3385.7,1.2]
[1735783519038,0.29591,3386.0,3385.8,0.29592]
[1735783519339,1.3008,3386.1,3385.7,1.2]
[1735783519637,3.2078,3386.3,3385.7,1.2]
[1735783519638,3.2078,3386.3,3385.8,3.6489]
[1735783519946,0.29589,3386.2,3386.0,0.2959]
[1735783520139,3.67569033,3386.5,3385.8,3.6489]
[1735783520335,3.67569033,3386.5,3385.8,0.4411]
[1735783520537,0.2959,3386.1,3386.0,0.2959]
[1735783520835,0.2959,3386.1,3385.9,0.29591]
[1735783521035,0.29589,3386.2,3385.9,0.29591]
[1735783521336,3.67569033,3386.5,3385.8,0.4411]
[1735783521740,0.2959,3386.1,3385.9,0.29591]
[1735783522244,0.4332,3386.0,3385.9,0.29591]
[1735783522744,0.7291,3386.0,3385.9,0.29591]
[1735783522943,0.4332,3386.0,3385.9,0.29591]
[1735783523940,0.4332,3386.0,3385.8,0.29591]
[1735783523941,0.72911,3386.0,3385.8,0.29591]
[1735783524443,2.38499033,3386.2,3385.9,0.29591]
[1735783524444,0.2959,3386.1,3385.9,0.29591]
[1735783524646,0.7597,3386.1,3385.9,0.29591]
[1735783524945,0.4638,3386.1,3385.7,1.2]
[1735783525135,0.4638,3386.1,3385.3,3.2078]
[1735783525136,0.29595,3385.5,3385.4,0.29595]
[1735783525444,2.38499033,3385.9,3385.3,3.2078]
[1735783525640,0.29594,3385.6,3385.4,1.49595]
[1735783526043,0.4638,3385.5,3385.4,1.49595]
[1735783526341,0.4638,3385.5,3385.4,1.2]
[1735783526536,0.75975,3385.5,3385.4,1.2]
[1735783526741,0.4638,3385.5,3385.3,3.2078]
[1735783526941,0.29599,3385.0,3384.9,3.2078]
[1735783527148,2.68098033,3385.0,3384.9,3.2078]
[1735783528947,0.29601,3384.8,3384.6,0.29602]
[1735783529144,0.29598,3385.1,3384.9,0.296]
[1735783529445,0.7296,3385.0,3384.8,0.296]
[1735783529644,0.4336,3385.0,3384.8,1.2]
[1735783529848,0.296,3384.9,3384.8,1.2]
[1735783530843,0.296,3384.9,3384.8,1.49601]
[1735783531437,7.3130486,3385.0,3384.8,1.2]
[1735783531842,0.296,3384.9,3384.8,1.49601]
[1735783532248,0.296,3384.9,3384.8,1.2]
[1735783532541,0.29603,3384.7,3384.4,3.2078]
[1735783532746,0.29601,3384.8,3384.5,1.2]
[1735783532947,0.4603,3384.9,3384.5,1.2]
[1735783533146,0.29603,3384.6,3384.5,1.2]
[1735783533447,0.4634,3384.7,3384.5,1.2]
[1735783533650,0.75942,3384.7,3384.5,1.49603]
[1735783534147,0.4634,3384.7,3384.5,1.49603]
[1735783534344,0.4634,3384.7,3384.5,1.2]
[1735783534549,0.4634,3384.7,3384.4,3.2078]
[1735783534850,0.29603,3384.6,3384.4,4.70384]
[1735783535046,0.87556976,3384.9,3384.4,4.70384]
[1735783535047,0.4603,3384.9,3384.4,6.79279033]
[1735783535239,3.2078,3385.0,3384.9,0.296]
[1735783535448,3.2078,3385.0,3384.5,0.4354]
[1735783535644,0.29601,3384.9,3384.7,0.29602]
[1735783535838,3.2078,3385.0,3384.9,0.296]
[1735783536043,3.2078,3385.0,3384.6,0.29602]
[1735783536247,3.5038,3385.0,3384.8,0.296]
[1735783536551,0.29601,3384.9,3384.7,0.29602]
[1735783537641,0.29601,3384.8,3384.6,0.29602]
[1735783537951,3.5038,3385.0,3384.5,0.4354]
[1735783538150,3.5038,3385.0,3384.8,0.296]
[1735783538945,0.296,3384.9,3384.5,0.4354]
[1735783539149,0.29601,3384.8,3384.6,0.29602]
[1735783539450,0.296,3384.9,3384.5,0.4354]
[1735783539651,0.296,3384.9,3384.7,0.29601]
[1735783540052,0.296,3384.9,3384.6,0.29603]
[1735783540345,0.296,3384.9,3384.7,0.29601]
[1735783541949,0.4634,3385.1,3384.7,0.29601]
[1735783542150,0.29599,3385.0,3384.5,0.4354]
[1735783542350,0.296,3384.9,3384.5,0.4354]
[1735783542551,0.296,3384.9,3384.5,0.8925]
[1735783542849,0.4634,3385.1,3384.4,4.70384]
[1735783542850,5.59279033,3385.0,3384.4,4.70384]
[1735783543051,0.29603,3384.6,3384.4,4.70384]
[1735783543745,0.29603,3384.6,3384.4,4.4078]
[1735783543946,0.29603,3384.6,3384.5,0.29604]
[1735783544346,0.29602,3384.7,3384.5,0.29604]
[1735783544555,0.29603,3384.6,3384.4,4.70384]
[1735783544848,0.73023,3384.6,3384.4,4.70384]
[1735783545249,0.29604,3384.5,3384.4,4.4078]
[1735783545654,0.29604,3384.5,3384.4,4.70384]
[1735783545851,0.29604,3384.5,3384.4,3.2078]
[1735783546155,0.29604,3384.5,3384.4,4.4078]
[1735783546355,0.29604,3384.5,3384.4,3.2078]
[1735783547551,0.4342,3384.6,3384.1,1.49607]
[1735783547753,0.29606,3384.3,3384.1,1.49607]
[1735783547953,2.38499033,3384.4,3384.1,1.49607]
[1735783547954,0.74776,3384.2,3384.1,1.49607]
[1735783548255,0.4517,3384.2,3384.1,1.49607]
[1735783549157,0.29604,3384.5,3384.4,0.29604]
[1735783549352,0.8672,3384.6,3384.2,0.4535]
[1735783549558,1.16323,3384.6,3384.5,0.29604]
[1735783549856,0.4342,3384.6,3384.5,0.29604]
[1735783550755,0.4309,3384.8,3384.3,3.6679]
[1735783550956,0.4309,3384.8,3384.7,0.29602]
[1735783552858,0.4309,3384.8,3384.3,44.4679]
[1735783552859,0.75048,3385.1,3384.4,0.74012]
[1735783553054,0.4545,3385.1,3385.0,0.29599]
[1735783553257,0.75049,3385.1,3384.9,1.2]
[1735783553663,0.75049,3385.1,3385.0,0.29599]
[1735783557050,0.29599,3385.0,3384.9,1.496]
[1735783557849,3.2078,3385.4,3385.3,0.29597]
[1735783558056,3.2078,3385.4,3384.9,1.2]
[1735783558057,7.1753986,3385.5,3385.4,0.29596]
[1735783558262,6.8794486,3385.5,3385.0,0.4231]
[1735783558657,6.8794486,3385.5,3385.4,0.29596]
[1735783558865,0.4276,3385.7,3385.0,0.4231]
[1735783559061,0.4546,3385.8,3385.1,0.73997]
[1735783559265,0.4546,3385.8,3385.7,0.29593]
[1735783559568,0.4546,3385.8,3385.7,1.49593]
[1735783561860,0.4289,3386.0,3385.9,0.29591]
[1735783562066,0.4289,3386.0,3385.7,1.2]
[1735783562366,0.72481,3386.0,3385.7,1.2]
[1735783562665,0.29591,3385.9,3385.8,0.29592]
[1735783563054,0.72481,3386.0,3385.9,0.29591]
[1735783563457,0.72481,3386.0,3385.7,1.2]
[1735783563458,0.4289,3386.0,3385.7,1.2]
[1735783563658,2.68091033,3385.9,3385.7,1.2]
[1735783563858,2.38499033,3385.9,3385.4,3.2078]
[1735783564056,0.29592,3385.8,3385.7,1.2]
[1735783565863,0.4289,3386.0,3385.4,3.50375]
[1735783565864,0.29595,3385.5,3385.4,3.2078]
[1735783566263,0.4289,3386.0,3385.5,0.29595]
[1735783566264,0.29594,3385.6,3385.5,0.29595]
[1735783566864,0.4653,3385.6,3385.5,0.29595]
[1735783567064,0.76124,3385.6,3385.5,0.29595]
[1735783567368,0.4653,3385.6,3385.5,0.29595]
[1735783567564,0.4289,3386.0,3385.4,4.4078]
[1735783567565,0.29592,3385.9,3385.4,4.4078]
[1735783567866,8.37621578,3385.9,3385.8,0.29592]
[1735783568268,8.08029578,3385.9,3385.5,0.432]
[1735783568470,0.29593,3385.8,3385.7,0.29593]
[1735783568874,6.9224417,3385.8,3385.7,0.29593]
[1735783569673,0.29592,3385.9,3385.5,0.432]
[1735783569874,3.57510033,3386.0,3385.9,0.29591]
[1735783570765,3.27919033,3386.0,3385.9,0.29591]
[1735783570967,0.8942,3386.0,3385.9,0.29591]
[1735783571270,5.59279033,3386.3,3385.5,0.432]
[1735783571271,5.59279033,3386.3,3386.2,0.29589]
[1735783571573,5.88867033,3386.3,3386.2,0.29589]
[1735783572480,0.29589,3386.2,3386.1,1.2]
[1735783572872,0.29589,3386.2,3386.1,1.4959]
[1735783573873,5.88867033,3386.3,3386.2,0.29589]
[1735783574378,0.29589,3386.2,3386.1,1.49589]
[1735783576073,2.38499033,3386.3,3386.2,0.29589]
[1735783576272,2.68087033,3386.3,3386.2,0.29589]
[1735783576775,2.38499033,3386.3,3386.2,0.29589]
[1735783576977,1.64696,3386.5,3386.4,0.29587]
[1735783577379,1.3511,3386.5,3386.4,0.29587]
[1735783577777,3.2078,3386.7,3386.6,0.29585]
[1735783577982,4.0779,3387.1,3386.3,0.7397]
[1735783578176,4.0779,3387.1,3387.0,0.29582]
[1735783578476,0.8701,3387.1,3387.0,0.29582]
[1735783578682,0.8701,3387.1,3386.9,1.49582]
[1735783578981,0.8701,3387.1,3387.0,0.29582]
[1735783579179,0.8701,3387.1,3386.9,1.2]
[1735783579479,1.16591,3387.1,3386.9,1.49582]
[1735783579682,0.8701,3387.1,3386.9,1.2]
[1735783579881,0.8701,3387.1,3387.0,0.29582]
[1735783587500,0.4234,3387.1,3387.0,0.29582]
[1735783587902,0.876,3387.4,3387.3,0.29579]
[1735783589505,0.4354,3387.4,3387.3,0.29579]
[1735783593100,0.4378,3387.7,3387.2,0.4587]
[1735783593305,0.4378,3387.7,3387.6,0.29576]
[1735783593502,0.4378,3387.7,3387.6,1.49476]
[1735783595103,0.46,3387.9,3387.8,0.29575]
[1735783595300,0.4269,3388.3,3388.2,0.29571]
[1735783595501,0.8865,3388.3,3388.2,0.29571]
[1735783598502,0.4357,3388.4,3388.0,2.38499033]
[1735783598700,0.8828,3388.8,3388.0,3.12432033]
[1735783598910,1.3411,3388.8,3388.7,0.29567]
[1735783599106,1.3411,3388.8,3388.7,1.49467]
[1735783599909,1.63676,3388.8,3388.7,1.49467]
[1735783600210,1.3411,3388.8,3388.7,1.199]
[1735783600409,1.63676,3388.8,3388.7,1.199]
[1735783600606,1.3411,3388.8,3388.7,1.49467]
[1735783601105,2.38499033,3389.3,3389.2,0.29563]
[1735783601106,3.2078,3389.3,3389.2,0.29563]
[1735783601312,3.2078,3389.7,3389.0,6.33190033]
[1735783601606,3.2078,3389.7,3389.6,0.29559]
[1735783601914,3.2078,3389.7,3389.6,42.29459]
[1735783602107,3.2078,3389.7,3389.6,43.18419]
[1735783602605,3.2078,3389.7,3389.6,48.18419]
[1735783603703,3.2078,3390.7,3389.8,0.73892]
[1735783603908,3.2078,3390.7,3390.6,0.2955]
[1735783604102,3.2078,3390.7,3390.6,1.4935]
[1735783604508,0.74147,3391.0,3390.6,1.4935]
[1735783604907,0.74147,3391.0,3390.6,1.198]
[1735783605113,0.74147,3391.0,3390.7,0.29549]
[1735783605415,0.74147,3391.0,3390.6,1.198]
[1735783605416,3.2078,3391.1,3391.0,0.29547]
[1735783605812,3.2078,3391.7,3391.0,5.0]
[1735783606012,3.2078,3391.7,3391.2,2.38499033]
[1735783606214,3.2078,3391.7,3391.5,0.29542]
[1735783607410,3.2078,3391.7,3391.4,0.29543]
[1735783607817,3.2078,3391.7,3391.5,0.29542]
[1735783608017,3.2078,3391.7,3391.3,1.198]
[1735783608219,3.50321,3391.7,3391.3,1.49344]
[1735783608414,3.2078,3391.7,3391.3,1.198]
[1735783608610,3.50321,3391.7,3391.3,1.198]
[1735783609408,0.29542,3391.6,3391.3,1.198]
[1735783609612,0.4546,3391.5,3391.3,1.198]
[1735783610119,0.75003,3391.5,3391.3,1.198]
[1735783610319,0.907,3391.5,3390.8,3.2078]
[1735783610621,0.907,3391.5,3390.6,2.38499033]
[1735783610622,3.50325,3391.3,3390.9,1.49348]
[1735783610911,3.2078,3391.3,3390.9,1.198]
[1735783611219,2.38499033,3391.0,3390.4,3.2078]
[1735783611415,0.2955,3390.7,3390.5,1.198]
[1735783611621,0.2955,3390.7,3390.3,1.198]
[1735783611622,2.38499033,3390.7,3390.3,1.198]
[1735783611918,2.38499033,3390.7,3389.9,1.198]
[1735783611919,0.29556,3390.0,3389.9,1.198]
[1735783612320,2.38499033,3390.4,3389.9,1.198]
[1735783612920,0.29554,3390.2,3389.9,1.198]
[1735783613913,2.38499033,3390.4,3389.9,1.198]
[1735783614113,0.29554,3390.2,3389.9,1.198]
[1735783614415,2.38499033,3390.4,3389.9,1.198]
[1735783614416,0.29556,3390.0,3389.9,1.198]
[1735783614614,0.29556,3390.0,3389.6,0.29559]
[1735783614816,0.29557,3389.9,3389.7,1.198]
[1735783615022,5.59279033,3390.1,3389.7,1.198]
[1735783615319,0.29557,3389.9,3389.7,1.198]
[1735783616518,5.59279033,3390.1,3389.6,1.198]
[1735783616723,0.29557,3389.9,3389.6,1.49359]
[1735783617022,0.29557,3389.9,3389.6,1.198]
[1735783617224,0.29557,3389.8,3389.6,1.198]
[1735783617421,0.72537,3389.8,3389.6,1.198]
[1735783618825,0.4298,3389.8,3389.6,1.198]
[1735783619016,0.72538,3389.8,3389.6,1.198]
[1735783619217,0.4298,3389.8,3389.5,1.198]
[1735783619418,0.4586,3390.0,3389.6,1.198]
[1735783619618,0.4586,3390.0,3389.9,0.29556]
[1735783620314,0.29554,3390.2,3389.9,0.29556]
[1735783620819,0.29555,3390.1,3389.6,1.198]
[1735783621125,0.29555,3390.1,3389.9,0.29556]
[1735783621723,0.443,3390.3,3389.6,41.998]
[1735783621919,0.443,3390.3,3390.2,0.29554]
[1735783622916,0.443,3390.3,3389.8,3.2078]
[1735783623228,0.443,3390.3,3390.2,0.29554]
[1735783623432,0.443,3390.3,3389.8,3.2078]
[1735783623726,0.443,3390.3,3389.7,0.4578]
[1735783623921,0.29556,3390.1,3389.8,0.29557]
[1735783624427,0.73854,3390.3,3390.0,0.29555]
[1735783624626,0.443,3390.3,3389.7,0.4578]
[1735783625125,0.29554,3390.2,3389.9,0.29556]
[1735783625327,0.29554,3390.2,3390.0,0.29555]
[1735783626127,0.29554,3390.2,3389.6,1.198]
[1735783626128,0.29557,3389.9,3389.6,0.29559]
[1735783626329,0.29556,3390.0,3389.7,1.49358]
[1735783626524,0.29556,3389.9,3389.7,1.49358]
[1735783626719,0.29557,3389.8,3389.7,1.198]
[1735783626921,0.29557,3389.8,3389.6,0.29559]
[1735783627126,0.29557,3389.8,3389.7,1.198]
[1735783628126,0.29557,3389.9,3389.7,1.49358]
[1735783629027,0.29557,3389.9,3389.7,0.29558]
[1735783629227,0.29557,3389.9,3389.6,1.49359]
[1735783629433,3.2078,3390.1,3389.6,1.198]
[1735783629632,3.2078,3390.1,3390.0,0.29556]
[1735783630034,0.73853,3390.3,3389.7,0.4578]
[1735783630235,0.73853,3390.3,3390.1,0.29554]
[1735783630530,0.29547,3391.1,3390.8,0.29548]
[1735783630827,3.2078,3391.4,3390.9,1.198]
[1735783630828,0.29547,3391.0,3390.9,1.198]
[1735783631429,0.29547,3391.0,3390.2,2.83169033]
[1735783631430,5.59279033,3391.0,3390.1,3.2078]
[1735783631629,0.29551,3390.5,3390.3,0.29553]
[1735783631824,2.38499033,3390.7,3390.3,0.29553]
[1735783631825,0.29551,3390.6,3390.3,0.29553]
[1735783632031,0.73551,3390.6,3390.3,0.29553]
[1735783632336,0.73551,3390.6,3390.4,1.198]
[1735783632337,0.29551,3390.5,3390.4,1.198]
[1735783632744,0.73551,3390.6,3390.4,1.198]
[1735783633029,0.44,3390.6,3390.4,1.198]
[1735783633232,0.44,3390.6,3390.0,3.2078]
[1735783633233,0.44,3390.6,3390.5,0.29551]
[1735783633829,0.73551,3390.6,3390.4,1.198]
[1735783634036,0.73551,3390.6,3390.4,1.49352]
[1735783634933,0.29551,3390.5,3390.4,1.198]
[1735783635727,3.6478,3390.6,3390.5,0.29551]
[1735783635938,0.44,3390.6,3390.5,0.29551]
[1735783636540,0.44,3390.6,3390.5,0.75095689]
[1735783636732,0.4204,3390.9,3390.4,1.198]
[1735783637037,0.4204,3390.9,3390.8,0.29549]
[1735783637231,0.73726,3391.2,3390.5,0.4475]
[1735783637531,0.4418,3391.2,3391.1,0.29546]
[1735783638235,0.4245,3391.3,3391.2,0.29545]
[1735783638930,0.71994,3391.3,3391.2,0.29545]
[1735783639134,0.4245,3391.3,3391.2,0.29545]
[1735783641434,3.2078,3391.4,3391.1,1.198]
[1735783641640,3.2078,3391.4,3391.3,0.29544]
[1735783642731,3.2078,3391.4,3391.3,0.7510095]
[1735783643542,3.2078,3391.4,3391.3,0.75324]
[1735783646536,3.50323,3391.4,3391.3,0.4578]
[1735783646933,8.2078,3391.4,3390.3,3.2078]
[1735783647133,0.9046,3391.5,3390.4,0.4553101]
[1735783647134,3.2078,3390.8,3390.4,0.4553101]
[1735783647629,3.2078,3390.8,3390.6,0.2955]
[1735783647630,3.50329,3390.8,3390.6,0.2955]
[1735783648233,3.2078,3390.8,3390.7,0.29549]
[1735783649033,0.29546,3391.1,3390.8,0.29548]
[1735783649534,0.4524,3391.3,3390.7,0.29549]
[1735783649535,0.29548,3391.0,3390.7,0.29549]
[1735783650133,0.29549,3390.8,3390.6,0.2955]
[1735783650536,0.74799,3390.8,3390.6,0.2955]
[1735783651736,0.74799,3390.8,3390.2,41.998]
[1735783652038,0.4525,3390.8,3390.7,0.29549]
[1735783652235,0.459,3390.9,3390.5,3.2078]
[1735783652437,0.4524,3391.3,3390.5,3.2078]
[1735783652438,0.908,3391.3,3391.2,0.29545]
[1735783652637,3.2078,3391.4,3391.3,0.29544]
[1735783652838,3.2078,3391.4,3391.3,1.49344]
[1735783655846,3.2078,3391.9,3391.8,0.2954]
[1735783664253,3.2078,3391.9,3391.8,1.4934]
[1735783666354,3.2078,3391.9,3391.1,0.8544]
[1735783666553,0.8656,3391.8,3391.4,0.29543]
[1735783666853,0.72271,3391.7,3391.4,0.29543]
[1735783667953,0.4273,3391.7,3391.2,1.198]
[1735783668452,0.29544,3391.3,3391.2,1.198]
[1735783668955,0.29542,3391.6,3391.2,1.49345]
[1735783669158,0.4273,3391.7,3391.2,1.198]
[1735783669454,0.29544,3391.4,3391.2,1.49345]
[1735783669649,0.29544,3391.3,3391.1,0.29545]
[1735783669849,0.4283,3391.2,3391.1,1.49345]
[1735783670060,0.72375,3391.2,3391.1,1.198]
[1735783671152,0.29547,3391.0,3390.9,1.198]
[1735783671553,0.29547,3391.0,3390.8,7.67848]